bitfinex/quotes_ETHUSD_20251122
["timestamp","ask_amount","ask_price","bid_price","bid_amount"]
[1763789410394,0.002,2741.6,2741.5,6.15330843]
[1763789410604,0.002,2741.6,2741.5,6.73570843]
[1763789410788,0.002,2741.6,2741.5,14.23334658]
[1763789411165,0.002,2741.6,2741.5,10.28334658]
[1763789411377,0.002,2741.6,2741.5,12.16145789]
[1763789412687,0.4777,2742.9,2742.2,1.00699264]
[1763789412894,0.1906,2743.0,2742.4,0.90699264]
[1763789413078,0.1906,2743.0,2742.5,4.94531579]
[1763789413291,0.4777,2743.2,2742.6,0.90699264]
[1763789413479,0.1886,2743.3,2742.7,0.123]
[1763789413660,0.1886,2743.3,2742.7,0.223]
[1763789413865,0.1886,2743.3,2742.6,0.90699264]
[1763789413866,0.4846,2742.8,2742.6,0.90699264]
[1763789414111,0.0152,2742.7,2742.6,0.90699264]
[1763789414275,0.0152,2742.7,2742.6,0.123]
[1763789414604,0.883204,2743.1,2742.6,0.123]
[1763789414773,0.890104,2742.7,2742.6,0.123]
[1763789414972,0.405504,2742.6,2742.2,0.90699264]
[1763789415204,0.0152,2742.3,2741.8,0.90699264]
[1763789415403,0.405504,2742.1,2741.9,0.123]
[1763789415703,0.405504,2742.4,2742.0,0.123]
[1763789415863,0.405504,2742.4,2741.3,4.66071579]
[1763789415864,0.405504,2742.0,2741.3,4.66071579]
[1763789416323,0.405504,2741.8,2741.0,0.90699264]
[1763789416473,0.405504,2741.3,2741.1,0.123]
[1763789416794,0.0152,2741.0,2740.5,4.66071579]
[1763789416996,0.405504,2740.5,2740.1,4.85111579]
[1763789417172,0.0199,2740.5,2740.4,0.124]
[1763789417573,0.903104,2740.5,2740.4,0.124]
[1763789418017,0.903104,2740.5,2740.4,0.001]
[1763789419518,0.425404,2740.5,2740.4,0.001]
[1763789419809,0.903104,2740.5,2740.4,0.001]
[1763789421272,0.890104,2740.5,2740.4,0.001]
[1763789421483,1.367804,2740.5,2740.4,0.001]
[1763789421685,0.890104,2740.5,2740.4,0.001]
[1763789422096,0.405504,2740.5,2740.4,0.001]
[1763789422611,0.1886,2740.9,2740.4,0.4636]
[1763789422776,0.1886,2740.9,2740.5,0.123]
[1763789423178,0.405504,2740.8,2740.5,0.123]
[1763789423713,0.883204,2740.8,2740.5,0.123]
[1763789423918,0.405504,2740.5,2740.4,0.001]
[1763789424270,0.405504,2740.8,2740.4,0.001]
[1763789424512,0.883204,2740.8,2740.4,0.001]
[1763789425011,0.890104,2740.5,2740.4,0.001]
[1763789425368,1.367804,2740.5,2740.4,0.001]
[1763789428299,0.890104,2740.5,2740.4,0.001]
[1763789428610,1.367804,2740.5,2740.4,0.001]
[1763789432048,0.1886,2740.9,2740.4,0.001]
[1763789432262,0.4846,2740.5,2740.4,0.001]
[1763789432449,0.890104,2740.5,2740.4,0.001]
[1763789432749,1.367804,2740.5,2740.4,0.001]
[1763789432946,0.405504,2740.5,2740.4,0.001]
[1763789433239,0.890104,2740.5,2740.4,0.001]
[1763789434319,1.367804,2740.5,2740.4,0.001]
[1763789436608,0.405504,2740.1,2740.0,0.001]
[1763789436809,0.896104,2740.1,2739.8,0.001]
[1763789437033,1.080704,2739.9,2739.8,0.001]
[1763789437366,0.405504,2739.8,2739.5,0.001]
[1763789437573,0.421104,2739.7,2739.5,0.001]
[1763789437866,1.367604,2739.7,2739.5,0.001]
[1763789440767,0.405504,2739.5,2739.1,0.001]
[1763789441110,1.95772638,2739.5,2739.1,0.001]
[1763789441733,1.362804,2739.5,2739.1,0.001]
[1763789445557,0.193,2739.9,2739.1,0.5349]
[1763789445751,0.4709,2739.8,2739.1,0.5349]
[1763789446188,0.405504,2739.7,2739.1,0.5349]
[1763789447192,0.405504,2739.8,2739.1,0.5349]
[1763789447361,0.876404,2739.8,2739.1,0.5349]
[1763789447783,0.896704,2739.5,2739.1,0.0843]
[1763789448383,0.896704,2739.5,2739.1,0.001]
[1763789448612,1.367604,2739.5,2739.1,0.001]
[1763789454065,0.405504,2739.4,2739.1,0.001]
[1763789454282,0.45773609,2739.3,2739.1,0.001]
[1763789454719,0.92863609,2739.3,2739.1,0.001]
[1763789454864,0.92863609,2739.3,2738.9,0.001]
[1763789454865,0.405504,2739.0,2738.9,0.001]
[1763789455071,1.39964109,2739.0,2738.9,0.001]
[1763789455593,2.1830506,2739.0,2738.9,0.001]
[1763789456197,2.13741351,2739.0,2738.9,0.001]
[1763789456400,2.18276856,2739.0,2737.5,0.4516]
[1763789456690,0.405504,2738.8,2737.5,0.4516]
[1763789457110,0.405504,2738.6,2737.5,0.4516]
[1763789457485,0.4709,2738.7,2737.5,0.4516]
[1763789457486,0.405504,2738.4,2737.5,0.001]
[1763789457870,0.405504,2738.2,2737.5,0.001]
[1763789458273,0.876404,2738.5,2737.6,0.4506]
[1763789458465,0.405504,2738.7,2737.5,0.001]
[1763789458698,0.405504,2738.7,2737.5,0.4516]
[1763789458883,0.405504,2738.8,2737.5,0.4516]
[1763789459187,0.405504,2738.6,2737.6,0.90699264]
[1763789459367,0.405504,2738.6,2737.7,0.5011551]
[1763789459564,0.405504,2738.5,2737.7,0.4506]
[1763789459792,0.876404,2738.8,2737.7,0.4506]
[1763789460004,0.405504,2738.6,2737.7,0.4506]
[1763789460174,0.405504,2737.7,2737.5,0.001]
[1763789460369,0.405504,2737.7,2737.5,0.4516]
[1763789460573,0.95263473,2738.7,2737.5,0.4516]
[1763789460574,0.405504,2737.8,2737.5,0.001]
[1763789461072,0.4912,2737.6,2737.5,0.001]
[1763789461279,0.896704,2737.6,2737.5,0.001]
[1763789462074,1.365104,2737.6,2737.5,0.001]
[1763789463511,1.31249664,2737.5,2737.3,0.001]
[1763789463713,1.14403564,2737.4,2737.3,0.001]
[1763789463913,0.881104,2737.4,2737.3,0.001]
[1763789464476,0.410204,2737.4,2737.3,0.001]
[1763789464673,1.2521949,2738.1,2737.3,0.4554]
[1763789464912,0.4709,2738.0,2737.3,0.4554]
[1763789465319,0.405504,2737.9,2737.3,0.4554]
[1763789465518,0.4636,2738.2,2737.3,0.923]
[1763789465678,0.405504,2738.1,2737.3,0.923]
[1763789466321,0.405504,2738.4,2737.3,0.923]
[1763789466480,0.405504,2738.2,2737.3,0.923]
[1763789466675,0.405504,2738.0,2737.3,0.4554]
[1763789467221,0.405504,2737.9,2737.3,0.4554]
[1763789467918,0.78152039,2738.4,2737.3,0.001]
[1763789468213,0.405504,2738.2,2737.4,0.4676]
[1763789468372,0.405504,2738.2,2737.3,0.001]
[1763789468580,0.405504,2738.0,2737.3,0.001]
[1763789469116,0.405504,2737.8,2737.3,0.001]
[1763789469289,0.405504,2737.6,2737.3,2.77417596]
[1763789469617,0.405504,2737.8,2737.3,2.77417596]
[1763789470017,0.78110077,2738.5,2737.3,0.001]
[1763789470018,0.405504,2737.6,2737.3,0.001]
[1763789470181,1.23229734,2738.3,2737.3,0.001]
[1763789470382,0.405504,2738.0,2737.3,0.001]
[1763789470722,0.869104,2738.2,2737.3,0.001]
[1763789471220,0.405504,2738.0,2737.3,0.001]
[1763789471624,0.405504,2737.9,2737.3,0.001]
[1763789471926,0.405504,2737.7,2737.3,0.001]
[1763789472415,0.405504,2737.5,2737.3,0.001]
[1763789472718,0.45116776,2737.4,2737.3,0.001]
[1763789473081,0.93536776,2737.4,2737.3,0.001]
[1763789473296,1.353304,2737.4,2737.3,0.001]
[1763789474100,0.405504,2737.4,2737.3,0.4936]
[1763789474893,0.405504,2737.4,2737.3,0.9612]
[1763789475808,0.002,2738.0,2737.3,0.9612]
[1763789476022,0.002,2738.0,2737.4,0.4676]
[1763789476528,0.002,2738.0,2737.4,0.97048712]
[1763789476822,0.407504,2738.0,2737.4,0.4676]
[1763789477317,0.002,2738.0,2737.4,0.4676]
[1763789477621,0.407504,2738.0,2737.3,0.001]
[1763789477783,0.405504,2737.8,2737.3,0.001]
[1763789478129,0.405504,2737.6,2737.3,0.001]
[1763789478320,0.4656,2738.0,2737.3,0.001]
[1763789478321,0.405504,2737.9,2737.3,0.001]
[1763789479229,0.407504,2738.0,2737.3,0.001]
[1763789479522,0.871104,2738.0,2737.3,0.001]
[1763789479814,0.405504,2737.8,2737.3,0.001]
[1763789480210,0.405504,2737.7,2737.3,0.001]
[1763789480930,0.405504,2737.5,2737.3,0.001]
[1763789481099,0.45116776,2737.4,2737.3,0.001]
[1763789481714,0.93536776,2737.4,2737.3,0.001]
[1763789481910,1.39896776,2737.4,2737.3,0.001]
[1763789483542,0.405504,2737.3,2737.0,0.001]
[1763789483744,0.421904,2737.1,2737.0,0.001]
[1763789483941,1.09110234,2737.1,2737.0,0.001]
[1763789484115,1.87546038,2737.1,2737.0,0.001]
[1763789484650,3.12306782,2737.1,2737.0,0.001]
[1763789485403,3.12306782,2737.1,2736.5,0.001]
[1763789485603,0.889704,2736.6,2736.5,0.001]
[1763789485813,1.088104,2736.6,2736.5,0.001]
[1763789486033,1.548404,2736.6,2736.5,0.001]
[1763789487432,0.405504,2736.6,2736.5,0.001]
[1763789487625,0.1984,2736.8,2736.5,0.001]
[1763789488215,0.1984,2737.0,2736.5,0.001]
[1763789488627,0.405504,2736.9,2736.5,0.001]
[1763789488826,0.4808,2736.6,2736.5,0.001]
[1763789489040,0.886304,2736.6,2736.5,0.001]
[1763789489642,1.349904,2736.6,2736.5,0.001]
[1763789491548,0.405504,2736.6,2736.5,0.001]
[1763789492047,0.20559834,2737.1,2736.5,0.9612]
[1763789492259,0.34052654,2737.3,2736.5,0.9612]
[1763789492459,1.24704788,2737.4,2736.6,0.4676]
[1763789492620,1.18895188,2737.3,2736.6,0.4676]
[1763789492827,0.405504,2737.3,2736.6,0.4676]
[1763789493154,0.2004,2737.5,2736.6,0.4676]
[1763789493356,0.405504,2737.4,2736.6,0.4676]
[1763789493555,0.45116776,2737.4,2736.5,0.001]
[1763789493755,0.405504,2737.2,2736.5,0.001]
[1763789494218,0.405504,2737.2,2736.5,0.4686]
[1763789495052,0.405504,2737.4,2736.5,0.4686]
[1763789495267,0.04566543,2737.3,2736.5,0.4686]
[1763789495556,0.856404,2737.4,2736.5,0.4686]
[1763789497216,0.405504,2737.2,2736.5,0.001]
[1763789497438,0.405504,2737.0,2736.5,0.001]
[1763789497636,0.405504,2736.8,2736.5,0.001]
[1763789497863,0.405504,2736.6,2736.5,0.001]
[1763789498062,0.40066317,2736.6,2736.5,0.4572]
[1763789498976,0.86326317,2736.6,2736.5,0.001]
[1763789499972,1.34506317,2736.6,2736.5,0.001]
[1763789504379,0.86326317,2736.6,2736.5,0.001]
[1763789504680,0.482,2737.2,2736.5,0.4572]
[1763789504853,0.482,2737.1,2736.5,0.001]
[1763789505064,0.405504,2737.0,2736.5,0.001]
[1763789505270,0.405504,2737.1,2736.5,0.001]
[1763789505665,0.405504,2737.0,2736.5,0.001]
[1763789506284,0.405504,2736.9,2736.5,0.001]
[1763789506489,0.22389947,2737.3,2736.9,0.4562]
[1763789506690,1.12434687,2737.4,2736.9,0.4562]
[1763789506895,0.4626,2737.0,2736.5,0.001]
[1763789507055,0.45117611,2736.9,2736.5,0.001]
[1763789507262,0.45117611,2736.9,2736.5,0.4684]
[1763789507263,0.405504,2736.8,2736.5,0.4684]
[1763789507588,0.04567211,2736.9,2736.8,0.4562]
[1763789507798,0.405504,2737.2,2736.8,0.4562]
[1763789507990,0.405504,2737.0,2736.8,0.4562]
[1763789508719,0.4626,2736.9,2736.5,0.001]
[1763789508870,0.405504,2736.8,2736.5,0.001]
[1763789509075,0.868304,2736.6,2736.5,0.001]
[1763789509593,1.349904,2736.6,2736.5,0.001]
[1763789511367,0.868304,2736.6,2736.5,0.001]
[1763789512058,0.405504,2736.6,2736.5,0.001]
[1763789512295,0.868404,2736.6,2736.5,0.001]
[1763789512907,0.405504,2736.6,2736.5,0.001]
[1763789513504,0.405504,2736.8,2736.5,0.001]
[1763789513882,0.04567544,2736.7,2736.5,0.001]
[1763789515017,0.405504,2736.8,2736.5,0.001]
[1763789515326,0.04567544,2736.7,2736.5,0.001]
[1763789515488,0.405504,2736.6,2736.5,0.001]
[1763789515926,0.405504,2737.0,2736.5,0.001]
[1763789516325,0.34154619,2737.1,2736.5,0.001]
[1763789516489,0.50857044,2737.0,2736.5,0.001]
[1763789516690,0.0046,2736.6,2736.5,0.001]
[1763789517390,0.868504,2736.6,2736.5,0.001]
[1763789519222,0.410104,2736.6,2736.5,0.001]
[1763789519911,0.868504,2736.6,2736.5,0.001]
[1763789520703,0.405504,2736.5,2736.2,0.001]
[1763789520903,0.868404,2736.3,2736.2,0.001]
[1763789521126,1.20992645,2736.3,2736.2,0.001]
[1763789521326,1.4312464,2736.3,2736.2,0.001]
[1763789522892,0.405504,2736.1,2735.9,0.001]
[1763789523089,0.91409113,2736.0,2735.9,0.001]
[1763789523296,1.26021358,2736.0,2735.9,0.001]
[1763789523592,1.43887555,2736.0,2735.9,0.001]
[1763789524528,0.405504,2735.9,2735.5,0.001]
[1763789524735,0.873404,2735.7,2735.5,0.001]
[1763789525227,1.064204,2735.7,2735.5,0.001]
[1763789525590,1.10989614,2735.7,2735.5,0.001]
[1763789526031,2.23631267,2735.7,2735.5,0.001]
[1763789526326,1.31249664,2735.6,2734.6,0.1885]
[1763789526490,0.405504,2735.4,2734.6,0.1885]
[1763789526924,0.405504,2735.2,2734.6,0.1885]
[1763789527539,0.405504,2735.4,2734.6,0.1885]
[1763789527740,0.45120115,2735.4,2734.6,0.6782]
[1763789528046,0.405504,2735.4,2734.6,0.6782]
[1763789528339,0.1106,2735.8,2735.3,0.4872]
[1763789528643,0.1106,2735.8,2735.3,0.001]
[1763789528841,0.78440661,2735.9,2735.3,0.001]
[1763789529015,0.2243491,2736.0,2735.4,0.4897]
[1763789529337,0.1106,2736.1,2735.4,0.4897]
[1763789529843,0.405504,2736.0,2735.4,0.4897]
[1763789530025,0.78474424,2736.2,2735.4,0.4897]
[1763789530225,0.4833,2736.3,2735.4,0.4897]
[1763789530425,0.78494112,2736.4,2735.4,0.4897]
[1763789530827,0.405504,2736.3,2735.4,0.4897]
[1763789531340,0.405504,2736.1,2735.3,0.001]
[1763789531539,0.04568212,2736.3,2735.5,0.4897]
[1763789531703,0.74631943,2736.4,2735.5,0.4897]
[1763789531899,0.2060531,2736.3,2735.5,0.4897]
[1763789532100,0.405504,2736.2,2735.5,0.4897]
[1763789532298,1.1907368,2736.2,2735.5,0.4897]
[1763789533345,0.405504,2736.2,2735.5,0.4897]
[1763789533533,0.405504,2736.3,2735.5,0.4897]
[1763789533840,0.405504,2736.1,2735.5,0.4897]
[1763789534203,0.405504,2735.5,2735.3,0.001]
[1763789534408,0.45120115,2735.4,2735.3,0.001]
[1763789534746,0.90330115,2735.4,2735.3,0.001]
[1763789534913,0.405504,2735.3,2734.6,0.6782]
[1763789535114,0.405504,2735.1,2734.6,0.6782]
[1763789535343,0.405504,2735.3,2734.6,0.6782]
[1763789535504,0.405504,2735.1,2734.6,0.1885]
[1763789535708,0.405504,2735.3,2734.6,0.6782]
[1763789535946,0.405504,2735.4,2734.6,0.6782]
[1763789536140,0.888804,2735.4,2734.6,0.6782]
[1763789537733,0.04569214,2735.7,2734.6,0.6782]
[1763789537734,0.405504,2735.2,2734.6,0.1885]
[1763789538646,0.888804,2735.2,2734.4,0.1885]
[1763789538850,0.405504,2735.1,2734.4,0.1885]
[1763789540412,0.405504,2735.5,2734.4,0.1885]
[1763789540651,0.405504,2735.3,2734.4,0.1885]
[1763789541011,0.405504,2735.1,2734.4,0.1885]
[1763789541441,0.405504,2734.9,2734.2,0.1885]
[1763789541712,0.405504,2734.7,2733.6,0.1885]
[1763789541938,0.405504,2734.5,2733.6,0.1885]
[1763789542350,0.405504,2734.3,2733.4,0.1885]
[1763789542557,0.888804,2734.3,2733.4,0.1885]
[1763789542738,0.4833,2734.2,2733.4,0.1885]
[1763789542920,0.405504,2734.1,2733.4,0.1885]
[1763789543441,0.888804,2734.1,2733.4,0.1885]
[1763789543946,0.888804,2734.1,2733.3,0.4897]
[1763789543947,0.4833,2734.0,2733.3,0.4897]
[1763789544125,0.405504,2733.9,2733.3,0.6782]
[1763789544446,0.599204,2733.9,2733.3,0.6782]
[1763789544943,0.599204,2733.9,2733.3,0.1885]
[1763789545917,0.599204,2733.9,2733.4,0.001]
[1763789546314,0.599204,2733.9,2732.9,0.1913]
[1763789546315,0.405504,2733.4,2733.1,0.001]
[1763789546530,1.31249664,2733.4,2733.1,0.001]
[1763789546857,0.857604,2733.2,2733.1,0.001]
[1763789547227,0.962904,2733.2,2733.1,0.001]
[1763789548073,0.857604,2733.2,2733.1,0.001]
[1763789548244,0.405504,2733.5,2733.1,0.001]
[1763789549275,0.405504,2733.7,2733.1,0.6792]
[1763789549635,0.405504,2733.8,2733.1,0.6792]
[1763789549836,0.5741076,2733.6,2733.1,0.6792]
[1763789550130,0.405504,2733.5,2733.1,0.6792]
[1763789550329,0.405504,2733.5,2733.2,0.4897]
[1763789550958,0.405504,2733.5,2733.4,0.4872]
[1763789551343,0.45123291,2733.5,2733.1,0.1895]
[1763789551750,0.405504,2733.5,2733.4,0.4872]
[1763789552669,0.405504,2733.5,2733.4,0.9769]
[1763789552868,0.45123291,2733.5,2733.4,0.4872]
[1763789553036,0.405504,2733.5,2733.4,0.4872]
[1763789553237,0.405504,2733.5,2733.1,0.6792]
[1763789553238,1.00863291,2733.5,2733.1,0.001]
[1763789553655,0.90333291,2733.5,2733.1,0.001]
[1763789554871,0.857604,2733.5,2733.1,0.6792]
[1763789555070,0.405504,2733.3,2733.1,0.6792]
[1763789555235,0.45123793,2733.2,2733.1,0.001]
[1763789556966,0.405504,2733.2,2733.1,0.4908]
[1763789557166,0.405504,2733.2,2733.1,1.1295]
[1763789557478,0.5741076,2733.6,2733.1,1.1295]
[1763789557631,1.16742813,2734.4,2733.2,0.4537]
[1763789557632,0.04572891,2733.5,2733.2,0.4537]
[1763789557838,0.405504,2733.8,2733.2,0.4537]
[1763789558038,0.405504,2733.6,2733.2,0.4537]
[1763789558239,0.405504,2733.4,2733.2,0.4537]
[1763789558874,0.405504,2733.8,2733.3,0.4898]
[1763789559175,0.405504,2734.1,2733.3,0.4898]
[1763789559348,0.405504,2734.1,2733.4,0.4537]
[1763789559965,0.18415072,2734.4,2733.4,0.4537]
[1763789560178,0.04571219,2734.5,2734.3,0.4898]
[1763789560349,0.82630808,2734.7,2733.4,0.4537]
[1763789560671,0.405504,2734.3,2733.4,0.4537]
[1763789561448,0.676781,2734.3,2733.4,0.4537]
[1763789562376,0.271277,2734.3,2733.4,0.4537]
[1763789562590,0.57396191,2734.5,2734.2,0.6748]
[1763789562752,0.57396191,2734.5,2734.4,0.4898]
[1763789563155,0.57396191,2734.5,2734.4,0.9435]
[1763789564382,0.002,2734.6,2734.4,0.9435]
[1763789564535,0.002,2734.6,2734.5,0.4537]
[1763789564879,0.002,2734.6,2734.5,0.9435]
[1763789565910,0.002,2734.6,2734.5,1.12854926]
[1763789566396,0.002,2734.6,2734.5,2.0355419]
[1763789566696,0.002,2734.6,2734.5,1.12854926]
[1763789566892,0.002,2734.6,2734.5,2.0355419]
[1763789567259,0.002,2734.6,2734.5,1.12854926]
[1763789568267,0.002,2734.6,2734.5,2.0355419]
[1763789568465,0.002,2734.6,2734.5,1.12854926]
[1763789568694,0.002,2734.6,2734.5,2.0355419]
[1763789569052,0.002,2735.3,2734.5,5.69251758]
[1763789569284,0.002,2735.3,2735.2,0.4898]
[1763789569701,0.002,2735.3,2735.2,0.9435]
[1763789570307,0.002,2735.6,2735.2,0.9435]
[1763789570603,0.002,2736.6,2735.9,0.90699264]
[1763789570759,0.002,2736.6,2736.5,0.6748]
[1763789571190,0.002,2736.6,2736.5,1.1285]
[1763789573805,0.002,2736.6,2736.5,1.34444926]
[1763789574889,0.002,2736.6,2736.5,1.46844926]
[1763789577301,0.002,2736.6,2736.5,1.1285]
[1763789577509,0.002,2736.6,2736.5,1.2525]
[1763789578312,0.407504,2736.6,2736.5,1.2525]
[1763789578619,0.002,2736.6,2736.5,1.1285]
[1763789578834,0.002,2736.6,2736.5,1.2525]
[1763789578981,0.002,2736.6,2736.5,2.15949264]
[1763789579186,0.002,2736.6,2736.5,2.83157722]
[1763789579999,0.002,2736.6,2736.5,6.48588016]
[1763789580214,0.002,2736.6,2736.5,2.83157722]
[1763789580534,0.002,2736.6,2736.5,2.15949264]
[1763789581815,0.002,2736.6,2736.5,5.81379558]
[1763789582912,0.002,2736.9,2736.6,1.00699264]
[1763789583115,0.002,2736.9,2736.8,0.4898]
[1763789583445,0.002,2736.9,2736.8,1.0675]
[1763789584241,0.002,2736.9,2736.8,0.6138]
[1763789584444,0.002,2736.9,2736.8,1.0675]
[1763789584641,0.407504,2736.9,2736.8,1.0675]
[1763789584799,0.407504,2736.9,2736.8,2.1719419]
[1763789585439,0.407504,2736.9,2736.8,1.97449264]
[1763789585643,0.407504,2736.9,2736.8,1.39679264]
[1763789585841,0.002,2736.9,2736.8,1.1101]
[1763789586141,0.407504,2736.9,2736.8,1.1101]
[1763789586943,0.407504,2736.9,2736.8,2.01709264]
[1763789587243,0.002,2736.9,2736.8,6.32880003]
[1763789588564,0.002,2737.2,2736.9,0.90699264]
[1763789588766,0.002,2737.2,2737.1,0.7729]
[1763789588934,0.002,2737.2,2737.1,5.72969452]
[1763789589141,0.002,2737.2,2737.1,5.85369452]
[1763789589353,0.002,2737.2,2737.1,6.81442667]
[1763789589763,0.002,2737.2,2737.1,11.76070648]
[1763789590060,0.002,2737.2,2737.1,11.86070648]
[1763789590761,0.002,2737.2,2737.1,11.63670648]
[1763789591067,0.002,2737.2,2737.1,3.16092479]
[1763789591263,0.002,2737.2,2737.1,2.20019264]
[1763789591426,0.002,2737.2,2737.1,5.85369452]
[1763789592049,0.002,2737.2,2737.1,5.72969452]
[1763789592254,0.002,2737.2,2737.1,5.85369452]
[1763789592460,0.002,2737.2,2737.1,10.79997433]
[1763789592635,0.002,2737.2,2737.1,12.34533463]
[1763789593863,0.002,2737.3,2737.2,0.90699264]
[1763789594055,0.002,2737.5,2737.4,0.1]
[1763789594232,0.002,2737.5,2737.4,0.5817]
[1763789594432,0.002,2737.5,2737.4,1.078]
[1763789594633,0.002,2737.5,2737.4,1.27649926]
[1763789595342,0.002,2737.5,2737.4,5.83659338]
[1763789596141,0.002,2738.6,2737.5,0.90699264]
[1763789596466,0.002,2738.6,2737.5,7.05527245]
[1763789597146,0.405504,2738.5,2737.5,7.05527245]
[1763789597368,0.405504,2738.5,2737.5,10.70824048]
[1763789597677,0.405504,2738.5,2737.5,12.52954713]
[1763789598283,0.405504,2738.5,2737.5,7.35926732]
[1763789598483,0.405504,2738.5,2737.5,7.48326732]
[1763789599183,0.405504,2738.5,2737.5,7.58326732]
[1763789600287,0.002,2737.9,2737.5,7.58326732]
[1763789601887,0.002,2737.9,2737.5,7.45926732]
[1763789602192,0.002,2737.9,2737.5,7.58326732]
[1763789604618,0.002,2737.9,2737.5,7.45926732]
[1763789604990,0.002,2737.9,2737.5,7.58326732]
[1763789605413,0.002,2737.9,2737.5,7.45926732]
[1763789605619,0.002,2737.9,2737.5,7.58326732]
[1763789605976,0.002,2737.9,2737.5,5.95597468]
[1763789606175,0.1904,2737.9,2737.5,0.6057]
[1763789606376,0.1904,2737.9,2737.5,5.16566067]
[1763789606603,0.1904,2737.9,2737.5,0.6057]
[1763789607206,0.1904,2737.9,2737.5,5.66196067]
[1763789607515,0.1904,2737.9,2737.5,2.00899264]
[1763789607719,0.1904,2737.9,2737.5,1.51269264]
[1763789608027,0.405504,2737.5,2737.1,3.84467026]
[1763789608230,0.405504,2737.5,2737.2,0.124]
[1763789608386,0.002,2737.6,2737.2,0.124]
[1763789608586,0.002,2737.6,2737.2,1.03099264]
[1763789609728,0.002,2737.6,2737.2,1.52729264]
[1763789609892,0.002,2737.6,2737.3,0.90699264]
[1763789610238,0.002,2737.6,2737.2,0.6203]
[1763789610439,0.002,2737.6,2737.2,0.124]
[1763789610840,0.002,2737.6,2737.1,4.75165911]
[1763789611143,0.405504,2737.5,2737.2,0.124]
[1763789611447,0.405504,2737.5,2737.2,1.03099264]
[1763789611657,0.405504,2737.5,2737.1,4.73483198]
[1763789611658,0.405504,2737.5,2737.1,1.08137002]
[1763789611940,0.410304,2737.2,2736.7,0.90699264]
[1763789612144,0.405504,2737.0,2736.8,0.124]
[1763789612645,0.405504,2737.3,2736.8,0.124]
[1763789612857,0.405504,2737.3,2736.5,0.001]
[1763789612858,0.405504,2736.8,2736.5,0.001]
[1763789613154,0.408704,2736.8,2736.6,0.124]
[1763789613335,0.408704,2736.8,2736.6,0.5019412]
[1763789613654,0.468404,2736.7,2736.6,0.3779412]
[1763789613806,0.405504,2736.6,2736.5,0.001]
[1763789614007,0.405504,2736.6,2736.5,0.125]
[1763789614008,0.410304,2736.6,2736.5,0.125]
[1763789614214,0.0048,2736.6,2736.5,0.125]
[1763789615108,0.4906,2736.6,2736.5,0.125]
[1763789615347,0.896104,2736.6,2736.5,0.001]
[1763789615550,0.896104,2736.6,2736.5,0.125]
[1763789617312,0.896104,2736.6,2736.5,0.001]
[1763789619157,0.405504,2736.5,2736.3,0.001]
[1763789619357,0.466804,2736.4,2736.3,0.001]
[1763789619865,0.953204,2736.4,2736.3,0.001]
[1763789621339,1.52661471,2736.4,2736.3,0.001]
[1763789622080,0.405504,2736.3,2736.2,0.001]
[1763789622287,0.910104,2736.3,2736.0,0.001]
[1763789622482,0.453104,2736.1,2736.0,0.001]
[1763789622687,0.405504,2736.0,2735.6,0.001]
[1763789622882,0.405504,2735.9,2735.6,0.001]
[1763789623092,0.636104,2735.7,2735.6,0.001]
[1763789623390,0.636104,2735.7,2733.8,0.187]
[1763789623391,0.0087,2735.4,2733.8,0.187]
[1763789623557,1.81219664,2735.6,2733.9,0.124]
[1763789623762,0.405504,2735.4,2733.9,0.124]
[1763789624085,0.405504,2735.4,2733.5,0.187]
[1763789624242,0.405504,2735.2,2733.8,0.124]
[1763789624648,0.405504,2735.0,2733.8,0.124]
[1763789625080,0.405504,2734.8,2733.8,0.124]
[1763789625381,0.405504,2734.6,2733.8,0.124]
[1763789625552,0.405504,2734.4,2733.8,0.124]
[1763789625944,0.4997,2734.7,2733.8,0.124]
[1763789626171,0.97928057,2734.6,2733.8,0.124]
[1763789626369,0.97928057,2734.6,2733.9,0.4867]
[1763789626849,0.4997,2735.2,2734.5,0.4858]
[1763789627082,0.573689,2735.0,2734.5,0.4858]
[1763789627286,0.405504,2734.9,2734.5,1.1595]
[1763789627581,0.905204,2734.9,2734.3,0.124]
[1763789627780,0.405504,2734.9,2734.3,0.124]
[1763789627971,0.405504,2734.9,2734.4,0.4867]
[1763789628168,0.405504,2734.9,2734.3,0.124]
[1763789628648,0.405504,2734.9,2734.4,1.39369264]
[1763789628847,0.405504,2734.9,2734.4,1.91118603]
[1763789629180,0.405504,2734.9,2734.5,0.4867]
[1763789629948,0.1834,2735.7,2734.7,0.90699264]
[1763789630249,0.405504,2735.1,2734.7,0.90699264]
[1763789630487,0.405504,2734.7,2734.6,2.77317596]
[1763789630785,0.901004,2734.7,2734.6,2.77317596]
[1763789630978,0.955004,2734.7,2734.6,2.77317596]
[1763789631184,0.901004,2734.7,2734.6,2.77317596]
[1763789631346,0.954904,2734.7,2734.6,2.77317596]
[1763789631749,0.896604,2734.7,2734.6,2.77317596]
[1763789632580,0.954904,2734.7,2734.6,2.77317596]
[1763789632816,0.405504,2734.6,2734.0,2.77317596]
[1763789632970,0.405504,2734.6,2733.7,2.77317596]
[1763789632971,0.405504,2734.0,2733.7,2.77317596]